Cogmind - Beta 17 @@@ ROGUE MODE // 2026.07.21 @ 03:45:49 Player: oozemaster Result: Destroyed by G-47 Trooper with Particle Gun Performance ------------- Evolutions (0) 0 Regions Visited (1) 200 Robots Destroyed (6) 30 Value Destroyed (105) 105 Prototype IDs (0) 0 Alien Tech Used (0) 0 Bonus (0) 0 TOTAL SCORE: 335 Bonus ------- None Cogmind --------- Core Integrity 0/250 Matter 231/300 Energy 100/100 System Corruption 0% Temperature Cool (9) Movement Core (1350) Ox26 Location -10/Materials Parts ------- > --- POWER (1) -------- (None) > --- PROPULSION (2) --- (None) > --- UTILITY (2) ------ Huge Storage Unit > --- WEAPON (2) ------- Datajack > --- INVENTORY (25) --- ECM Suite Datajack Datajack Datajack Datajack Peak State ------------ > --- POWER ------------ Ion Engine > --- PROPULSION ------- Aluminum Leg Aluminum Leg > --- UTILITY ---------- Heat Sink Heat Sink > --- WEAPON ----------- Medium Laser Grenade Launcher > --- INVENTORY -------- Light Ion Engine Light Ion Engine Small Laser Light Assault Rifle [Rating: 7] Favorites ----------- Power Ion Engine Engine Ion Engine Propulsion Aluminum Leg Treads Light Treads Leg Aluminum Leg Utility Huge Storage Unit Device Tractor Beam Storage Huge Storage Unit Weapon Medium Laser Energy Gun Medium Laser Ballistic Gun Light Assault Rifle Launcher Grenade Launcher Special Melee Weapon Datajack Build | -11 -10 ------- Run | Yrd Mat Slots Evolved . | . . Power . | . . Propulsion . | . . Utility . | . . Weapon . | . . Parts Attached 16 | 8 8 Power 2 | 2 . Engine 2 | 2 . Core . | . . Reactor . | . . Propulsion 4 | 2 2 Treads 2 | . 2 Leg 2 | 2 . Wheel . | . . Hover . | . . Flight . | . . Utility 5 | 1 4 Device 4 | 1 3 Storage 1 | . 1 Processor . | . . Hackware . | . . Protection . | . . Artifact . | . . Weapon 5 | 3 2 Energy Gun 2 | 2 . Energy Cannon . | . . Ballistic Gun 1 | 1 . Ballistic Cannon . | . . Launcher 1 | . 1 Special Weapon . | . . Impact Weapon . | . . Slashing Weapon . | . . Piercing Weapon . | . . Special Melee Weapon 1 | . 1 Unidentified Prototypes . | . . Parts Lost 4 | . 4 Power 1 | . 1 Propulsion 2 | . 2 Utility . | . . Weapon 1 | . 1 Highest Loss Streak 4 | . 4 To Critical Strikes . | . . Average Backups 1 | 2 1 Power . | . . Propulsion . | . . Utility . | . . Weapon . | 1 . Tool/Special . | . . Unused Backups 9 | 1 8 Power 1 | . 1 Propulsion 2 | 1 1 Utility 2 | . 2 Weapon 2 | . 2 Tool/Special 2 | . 2 Average Slot Usage (%) 93 | . 93 Engine 13 | . 13 Treads 17 | . 17 Leg 10 | . 10 Device 16 | . 16 Storage 8 | . 8 Energy Gun 13 | . 13 Ballistic Gun 9 | . 9 Launcher 2 | . 2 Peak Build Rating 7 | 6 7 Average Rating 6 | 4 6 On Entrance 3 | . 6 Avg Prop Armor Cover (%) . | . . Naked Turns . | . . Heaviest Build 89 | 9 89 Greatest Support 40 | 20 40 Greatest Overweight (x) 27 | . 27 Average Overweight (x) . | . . Largest Inventory Capacity 25 | 5 25 Average Capacity 14 | 5 17 Most Carried 6 | 5 6 Average Carried 2 | 2 1 Final Capacity 25 | 5 25 Final Carried 5 | 3 5 Class Distribution -------------------- 100% | Mutant Dominant Class ---------------- Mutant | -10/Materials Resources | -11 -10 ----------- Run | Yrd Mat Matter Collected 345 | 255 90 Remotely 83 | . 83 Salvage Created 138 | 58 80 Parts 12 | 6 6 Haulers Intercepted . | . . Recyclers Shooed 1 | . 1 Parts Field Recycled . | . . Retrieved Matter . | . . Parts Self-Destructed . | . . Prevented . | . . Parts Restored . | . . Kills | -11 -10 ------- Run | Yrd Mat Combat Hostiles Destroyed 4 | 1 3 Guns 4 | 1 3 Classes Destroyed 4 | 2 2 Worker 1 | 1 . Watcher 1 | . 1 Swarmer 2 | . 2 Grunt 2 | 1 1 Best Kill Streak 2 | 1 2 Combat Bots Only 2 | 1 2 Max Kills in Single Turn 1 | 1 1 Gunslinging . | . . Exploded . | . . Melee . | . . Uniques/NPCs Destroyed . | . . Combat | -11 -10 -------- Run | Yrd Mat Hostile Shots Fired 99 | 9 90 Missed 25 | 4 21 Hits 74 | 5 69 Projectile 74 | 5 69 Critical Strikes 1 | . 1 Damage Taken 919 | 57 862 Core 260 | 24 236 Absorbed by Shields . | . . Core Remaining (%) 90 | 90 . Volleys Fired 40 | 10 30 Largest 2 | 2 2 Hottest 80 | 60 80 Shots Fired 71 | 20 51 Gun 69 | 20 49 Cannon . | . . Launcher 2 | . 2 Special . | . . Kinetic 29 | 10 19 Thermal 40 | 10 30 Explosive 2 | . 2 Electromagnetic . | . . Robot Hit Streak 5 | 3 5 Robot Miss Streak 4 | 2 4 Penetration Max . | . . Secondary Targets 1 | . 1 Max Gunslinging Chain 1 | . 1 Shots Hit Robots 35 | 9 26 Core Hits 14 | 4 10 Critical Kills . | . . Critical Parts Destroyed 2 | . 2 Critical Strikes 5 | . 5 Burn 3 | . 3 Destroy 2 | . 2 Melee Attacks . | . . Impact . | . . Slashing . | . . Piercing . | . . Sneak Attacks . | . . Combat Hostiles . | . . Follow-up Attacks . | . . Damage Inflicted 469 | 86 383 Guns 397 | 83 314 Cannons . | . . Explosions 69 | . 69 Melee . | . . Ramming 3 | 3 . Kinetic 128 | 39 89 Thermal 269 | 44 225 Explosive 69 | . 69 Electromagnetic . | . . Impact . | . . Slashing . | . . Piercing . | . . Highest Corruption . | . . Average Corruption . | . . Corruption Purged . | . . Corruption Blocked . | . . Overload Shots . | . . Overflow Damage . | . . Projectiles . | . . Explosions . | . . Melee . | . . Knockbacks . | . . Impact . | . . Kinetic . | . . Secondary . | . . Self-Inflicted Damage 32 | . 32 Shots 1 | . 1 Rammed . | . . Targets Rammed 1 | 1 . Kicked 1 | 1 . Crushed . | . . Highest Temperature 231 | 90 231 Average Temperature 62 | 37 70 Received Heat Transfer 420 | 30 390 Siege Activations . | . . Martial Activations . | . . Shielding Activations . | . . Robots Disrupted . | . . Combat Hostiles . | . . Robots Corrupted . | . . Combat Hostiles . | . . Parts Fried . | . . Impact Corruptions . | . . Robots Melted . | . . Combat Hostiles . | . . Parts Melted . | . . Heat Transferred 988 | 100 888 Parts Sabotaged . | . . Parts Stolen . | . . Parts Stripped . | . . Power Chain Reactions . | . . Alert | -11 -10 ------- Run | Yrd Mat Maximum Alert Level . | . . Low Security (%) 100 | 100 100 Level 1 . | . . Level 2 . | . . Level 3 . | . . Level 4 . | . . Level 5 . | . . High Security . | . . Max Security . | . . Peak Influence 50 | 20 50 Initial . | . . Average 9 | 1 12 Influence Increases 230 | 25 205 Destroy 0b10 Robot/C 80 | 20 60 Destroy 0b10 Robot/NC 10 | 5 5 Destroy Leader 2 | . 2 Destroy Structure 18 | . 18 Lose Combat Pursuer 120 | . 120 Influence Decreases 230 | 25 205 Time Decay 215 | 25 190 Lost Part 15 | . 15 Squads Dispatched . | . . Investigation . | . . Extermination . | . . Reinforcement . | . . Assault . | . . Garrison . | . . Intercept . | . . Searches Triggered . | . . Construction Impeded . | . . Haulers Reinforced . | . . Active Scanning Responses . | . . Cargo Convoy Interrupts . | . . Stealth | -11 -10 --------- Run | Yrd Mat Distress Signals 1 | . 1 Communications Jammed . | . . Distress Signals . | . . Times Spotted 15 | 1 14 Peak Tracking Total 5 | 1 5 Tactical Retreats 8 | . 8 Traps | -11 -10 ------- Run | Yrd Mat Traps Triggered 1 | . 1 Indirectly . | . . Trap Hack Attempts . | . . Triggered . | . . Disarmed . | . . Reprogrammed . | . . Reused . | . . Traps Extracted . | . . Installed . | . . Triggered . | . . Machines | -11 -10 ---------- Run | Yrd Mat Machines Disabled . | . . Max in Single Turn . | . . Machines Repaired . | . . Machines Dismantled . | . . Machines Sabotaged . | . . Overloaded Fab Kills . | . . Hacking | -11 -10 --------- Run | Yrd Mat Machines Accessed . | . . Terminals . | . . Fabricators . | . . Repair Stations . | . . Recycling Units . | . . Scanalyzers . | . . Garrison Access . | . . Total Hacks . | . . Successful . | . . Failed . | . . Catastrophic . | . . Database Lockouts . | . . Manual . | . . Terminals . | . . Fabricators . | . . Repair Stations . | . . Recycling Units . | . . Scanalyzers . | . . Garrison Access . | . . Terminal Hacks . | . . Fabricator Hacks . | . . Repair Station Hacks . | . . Recycling Unit Hacks . | . . Scanalyzer . | . . Garrison Access Hacks . | . . Unauthorized Hacks . | . . Terminals . | . . Fabricators . | . . Repair Stations . | . . Recycling Units . | . . Scanalyzers . | . . Garrison Access . | . . Data Cores Recovered . | . . Used . | . . Hacking Detections . | . . Full Trace Events . | . . Feedback Events . | . . Feedback Blocked . | . . Robot Schematics Acquired . | . . Robots Built . | . . Authchips . | . . Time . | . . Total Robot Build Rating . | . . Part Schematics Acquired . | . . Parts Built . | . . Authchips . | . . Time . | . . Total Part Build Rating . | . . Part Studies Acquired . | . . Parts Repaired . | . . Time . | . . Parts Recycled . | . . Recycled Matter . | . . Retrieved Matter . | . . Retrieved Components . | . . Parts Scanalyzed . | . . Part Schematics Acquired . | . . Parts Damaged . | . . Bothacking | -11 -10 ------------ Run | Yrd Mat Used RIF Installer . | . . Robots Hacked . | . . Non-combat . | . . Combat . | . . Robot Hacks Applied . | . . Relay Couplers Released . | . . Fabnet Peak Effective % . | . . Robots Rewired . | . . Allies Hacked . | . . Hacks Repelled . | . . Allies | -11 -10 -------- Run | Yrd Mat Total Allies . | . . Largest Group . | . . Highest-Rated Group . | . . Highest-Rated Ally . | . . Total Orders . | . . Ally Attacks . | . . Total Damage . | . . Kills . | . . Allies Corrupted . | . . Allies Melted . | . . Intel | -11 -10 ------- Run | Yrd Mat Active Infowar (turns) 72 | . 72 Seismic 72 | . 72 Robot Analysis Total . | . . Derelict Logs Recovered . | . . Drone Launches . | . . Drone Recoveries . | . . Exploration | -11 -10 ------------- Run | Yrd Mat Turns Passed 935 | 243 692 Spaces Moved 402 | 147 255 Core 25 | 24 1 Treads 109 | . 109 Legs 268 | 123 145 Wheels . | . . Hover . | . . Flight . | . . Fastest Speed 50 | 50 120 Average Speed 174 | 108 211 Slowest Speed 1400 | 120 1400 Overloaded Moves . | . . Propulsion Burnouts . | . . Robots Hopped . | . . Potential Cave-ins . | . . Cave-ins Triggered . | . . Exploration Rate (%) 27 | 10 45 Regions Visited 1 Branch Regions . Pre-discovered Areas . | . . Known Exits Taken . | . . Unknown Exits Taken 1 | 1 . Scrap Searched . | . . Spaces Dug . | . . Terrain Destroyed 14 | . 14 Melee . | . . Projectile . | . . AOE 14 | . 14 Terrain Rammed . | . . Walls Destroyed . | . . Machines Disabled . | . . Actions | -11 -10 --------- Run | Yrd Mat Total 582 | 211 371 Wait 77 | 32 45 Move 401 | 146 255 Hop . | . . Pick Up 27 | 10 17 Fast Attach . | . . Attach 14 | 7 7 Detach 3 | 1 2 Swap 5 | 3 2 Drop 14 | 1 13 Fire 40 | 10 30 Melee . | . . Ram . | . . Kick 1 | 1 . Crush . | . . Escape Stasis . | . . Rewire . | . . Trap . | . . Miscellaneous . | . . Route ------- -11/Scrapyard -10/Materials (discovered 1 exit: [*Min]) History --------- Turn | Location | Event 2 | -11/Scrapyard | Met Revision 17 130 | -11/Scrapyard | Discovered new exit (range 8) 244 | -11/Scrapyard | Entered Materials 309 | -10/Materials | Build established: Mutant 807 | -10/Materials | Discovered new exit (range 7) 906 | -10/Materials | Core integrity fell below 50% 929 | -10/Materials | Core integrity fell below 20% 936 | -10/Materials | Destroyed by G-47 Trooper with Particle Gun Last Messages --------------- Massive razor-sharp blades shoot up from within the floor. Tractor Beam severed. Lgt. Assault Rifle severed. U-05 Engineer lays Concrete. Acquired Datajack. G-47 Trooper suffers critical hit (Burn). Bump into an enemy to attack with the active melee weapon. Even while active, melee weapons do not fire together with ranged weapons in the same volley. Terminal disabled. R-06 Scavenger collects Lgt. Assault Rifle. Lgt. Treads destroyed. R-06 Scavenger collects Tractor Beam. Ion Engine destroyed. Critical hit (Burn: +37). Lgt. Treads destroyed. Med. Laser destroyed. [Achievement: First Step to Greatness] Map ----- +----------------------------------------------------+ | ?????????????????????????????????????????????????? | | ?????????????????????????????????????????????????? | | ?????????????????????? ????????????????????????? | | ????????????????????? ????????????????????????? | | ?????????????????????# ????????????????????????? | | ?????????????????????# ????????????????????????? | | ?????????????????????# ?????????????" #????????? | | ?????????????????????# ????????????"" ?????????? | | ?????????????????????# ??????????? ??????????? | | ?????????????????????# ###########+#### ??????? | | ?????????????????????# ^ ??????? | | ?????????????????????# ^ ?????????? | | ?????????????????????# ????????????? | | ?????????????????????# #???????????????? | | ?????????????????????# #???????????????? | | ?????????????????????# #???????????????? | | ?????????????????????# #???????????????? | | ?????????????????????# ^ #???????????????? | | ?????????????????????# a #???????????????? | | ????????????? ####### "T" #???????????????? | | ?????????# " " #???????????????? | | ?????????# #???????????????? | | ?????????# #???????????????? | | ?????????? #######+## #???????????????? | | ?????????? ??????????## #### #???????????????? | | ???????????????????????# @ """# #???????????????? | | ???????????????????????#g "# #???????????????? | | ???????????????????????# g |"# ####????????????? | | ???????????????????????# < ""# #????????????? | | ???????????????????????# u |"# #????????????? | | ???????????????????????# "# #????????????? | | ???????????????????????# """# #????????????? | | ???????????????????????## ####+##+######???????? | | ????????????????????????#r # #???????? | | ????????????????????????# # """ """ #???????? | | ????????????????????????# # """"""""" #???????? | | ????????????????????????# # """"" #???????? | | ????????????????????????# # #???????? | | ????????????????????????# ##+###########???????? | | ????????????????????????+ #???????????????? | | ?????????##########?????# #???????????????? | | ?????????# #?????# ########## ?????? | | ?????????# """ ####### ???? | | ?????????# """ # ^ ^ T???? | | ?????????# / """ # ???? | | ?????????# + ########## ????? | | ?????????# """ # " #???????????????? | | ?????????# """ # """ ##???????????????? | | ?????????# """ # "" ""#########?###### | | ?????????# # """ ""## #?# | +----------------------------------------------------+ Best States ------------- Heat Dissipation 45 Energy Generation 10 Energy Capacity 250 Matter Stores 300 Matter Capacity 300 Sight Range 16 Terrain Scan Density 10 Evasion (%) 55 Recoil Reduction 2 Item Schematics ----------------- None Robot Schematics ------------------ None Fabricated ------------ Nothing Repaired ---------- Nothing Studied --------- None Alien Tech Used ----------------- None Achievements -------------- First Step to Greatness For Emergencies Only Organ Harvest Challenges ------------ None Game ------ Seed AntigravSmartArachnoskeleton Manual? 0 Play Time 00:15:14 Cumulative 0.2 hours Start 2026.07.21 @ 03:29:50 End 2026.07.21 @ 03:45:49 Sessions 1 Manual Loads 0 Difficulty Rogue Special Mode None Game No. 1 Rogue 1 Adventurer 0 Explorer 0 Win Type - Total 0 Types 0/0/0/0/0/0/0/0/0/0 Lore% 0 Gallery% 1 Achievement% 0 Wizard Run 0 Options --------- Layout 1 ASCII 0 Keyboard 0 Movement Mouse Keybinds 0 Fullscreen 1 Font 24/Proggy Map View 50x35 Zoom Use 0% Tactical HUD 0 Map Filters NONE Filters NONE Steam 1 RUN: 1ed009be-6d67-4638-9220-865cf60ae52b